Cogmind - Beta 11 @@@ ROGUE MODE // 2022.03.19 @ 20:42:04 Player: ModulinMyGlobulin Result: Self-destructed Performance ------------- Evolutions (1) 500 Regions Visited (2) 400 Robots Destroyed (46) 230 Value Destroyed (1015) 1015 Prototype IDs (2) 40 Alien Tech Used (0) 0 Bonus (116) 116 TOTAL SCORE: 2301 Bonus ------- High Alert Combat Kills 116 Cogmind --------- Core Integrity 194/400 Matter 146/300 Energy 100/100 System Corruption 0% Temperature Hot (279) Movement Core (100) Ox1 Location -9/Materials Parts ------- > --- POWER (1) -------- (None) > --- PROPULSION (2) --- (None) > --- UTILITY (4) ------ Small Storage Unit Visual Processing Unit Salvage Targeting Computer > --- WEAPON (2) ------- (None) > --- INVENTORY (8) ---- Ion Engine Aluminum Leg Aluminum Leg Aluminum Leg Medium Laser Rocket Launcher Flail Peak State ------------ > --- POWER ------------ Light Nuclear Core > --- PROPULSION ------- Aluminum Leg Aluminum Leg > --- UTILITY ---------- Improved Heat Sink Small Storage Unit Visual Processing Unit Salvage Targeting Computer > --- WEAPON ----------- Improved Light Cannon Improved Light Cannon > --- INVENTORY -------- Ion Engine Aluminum Leg Aluminum Leg Aluminum Leg Medium Laser Particle Gun Rocket Launcher Flail [Rating: 18] Favorites ----------- Power Ion Engine Engine Ion Engine Power Core Light Nuclear Core Propulsion Aluminum Leg Leg Aluminum Leg Utility Small Storage Unit Device Heat Sink Storage Small Storage Unit Processor Visual Processing Unit Weapon Improved Light Cannon Energy Gun EM Pulse Gun Ballistic Gun Assault Rifle Ballistic Cannon Improved Light Cannon Launcher Rocket Launcher Build | -11 -10 -9 ------- Run | Scr Mat Mat Slots Evolved 2 | . . 2 Power . | . . . Propulsion . | . . . Utility 2 | . . 2 Weapon . | . . . Parts Attached 25 | . 9 16 Power 1 | . . 1 Engine . | . . . Core 1 | . . 1 Reactor . | . . . Propulsion 7 | . 2 5 Treads . | . . . Leg 7 | . 2 5 Wheel . | . . . Hover . | . . . Flight . | . . . Utility 7 | . 2 5 Device 3 | . 1 2 Storage 1 | . . 1 Processor 3 | . 1 2 Hackware . | . . . Protection . | . . . Artifact . | . . . Weapon 10 | . 5 5 Energy Gun 2 | . 1 1 Energy Cannon . | . . . Ballistic Gun 1 | . 1 . Ballistic Cannon 4 | . 2 2 Launcher 3 | . 1 2 Special Weapon . | . . . Impact Weapon . | . . . Slashing Weapon . | . . . Piercing Weapon . | . . . Special Melee Weapon . | . . . Unidentified Prototypes . | . . . Parts Lost 8 | . 1 7 Power 1 | . . 1 Propulsion 2 | . . 2 Utility 1 | . . 1 Weapon 4 | . 1 3 Highest Loss Streak 7 | . 1 7 To Critical Strikes . | . . . Average Slot Usage (%) 93 | . 94 93 Engine 11 | . 14 9 Leg 24 | . 28 21 Device 4 | . 1 6 Storage 12 | . 14 11 Processor 14 | . 7 21 Energy Gun 6 | . 13 . Ballistic Gun 6 | . 13 . Ballistic Cannon 11 | . . 21 Naked Turns . | . . . Heaviest Build 19 | 14 18 19 Greatest Support 20 | 20 20 20 Greatest Overweight (x) . | . . . Average Overweight (x) . | . . . Largest Inventory Capacity 8 | . 8 8 Average Capacity 8 | . 8 8 Most Carried 8 | . 8 8 Average Carried 7 | . 7 7 Final Capacity 8 | 8 8 8 Final Carried 8 | 6 8 7 Class Distribution -------------------- 95% | Mutant 4% | Scavenger-Mutant Dominant Class ---------------- Mutant | -10/Materials Mutant | -9/Materials Resources | -11 -10 -9 ----------- Run | Scr Mat Mat Matter Collected 854 | 200 209 445 Remotely . | . . . Salvage Created 1117 | . 495 622 Parts 85 | . 36 49 Haulers Intercepted 3 | . 1 2 Recyclers Shooed . | . . . Parts Field Recycled . | . . . Retrieved Matter . | . . . Parts Self-Destructed . | . . . Prevented . | . . . Kills | -11 -10 -9 ------- Run | Scr Mat Mat Combat Hostiles Destroyed 36 | . 10 26 Guns 8 | . 7 1 Cannons 17 | . . 17 AOE 11 | . 3 8 Classes Destroyed 9 | . 5 4 Worker 2 | . . 2 Builder 4 | . 3 1 Hauler 3 | . 1 2 Watcher 1 | . 1 . Swarmer 14 | . 3 11 Grunt 17 | . 7 10 Duelist 1 | . . 1 Protector 1 | . . 1 Sentry 3 | . . 3 Best Kill Streak 9 | . 5 9 Combat Bots Only 7 | . 3 7 Max Kills in Single Turn 3 | . 2 3 Gunslinging . | . . . Exploded 3 | . 2 3 Melee . | . . . Uniques/NPCs Destroyed . | . . . Combat | -11 -10 -9 -------- Run | Scr Mat Mat Damage Taken 1287 | . 348 939 Core 251 | . 45 206 Absorbed by Shields . | . . . Core Remaining (%) 91 | 100 82 . Volleys Fired 97 | . 38 59 Largest 2 | . 2 2 Hottest 104 | . 60 104 Shots Fired 182 | . 70 112 Gun 71 | . 66 5 Cannon 102 | . . 102 Launcher 9 | . 4 5 Special . | . . . Kinetic 136 | . 34 102 Thermal 21 | . 16 5 Explosive 9 | . 4 5 Electromagnetic 16 | . 16 . Robot Hit Streak 13 | . 7 13 Robot Miss Streak 9 | . 2 9 Penetration Max . | . . . Secondary Targets . | . . . Shots Hit Robots 107 | . 47 60 Core Hits 58 | . 23 35 Critical Kills . | . . . Critical Parts Destroyed . | . . . Critical Strikes 5 | . 1 4 Blast 4 | . . 4 Corrupt 1 | . 1 . Melee Attacks . | . . . Impact . | . . . Slashing . | . . . Piercing . | . . . Sneak Attacks . | . . . Combat Hostiles . | . . . Follow-up Attacks . | . . . Damage Inflicted 2746 | . 835 1911 Guns 660 | . 609 51 Cannons 1188 | . . 1188 Explosions 888 | . 226 662 Melee . | . . . Ramming 10 | . . 10 Kinetic 1491 | . 303 1188 Thermal 187 | . 136 51 Explosive 865 | . 203 662 Electromagnetic 193 | . 193 . Impact . | . . . Slashing . | . . . Piercing . | . . . Highest Corruption . | . . . Average Corruption . | . . . Corruption Purged . | . . . Corruption Blocked . | . . . Overload Shots . | . . . Overflow Damage 14 | . . 14 Projectiles 2 | . . 2 Explosions 12 | . . 12 Melee . | . . . Knockbacks 8 | . . 8 Impact . | . . . Kinetic 7 | . . 7 Secondary 1 | . . 1 Self-Inflicted Damage 66 | . 26 40 Shots 3 | . 1 2 Rammed . | . . . Targets Rammed 4 | . 1 3 Kicked 4 | . 1 3 Crushed . | . . . Highest Temperature 279 | . 54 279 Average Temperature 35 | . 20 44 Received Heat Transfer 414 | . 174 240 Siege Activations . | . . . Robots Corrupted . | . . . Combat Hostiles . | . . . Parts Fried . | . . . Impact Corruptions . | . . . Robots Melted . | . . . Combat Hostiles . | . . . Parts Melted . | . . . Heat Transferred 411 | . 300 111 Parts Sabotaged . | . . . Parts Stolen . | . . . Parts Stripped . | . . . Power Chain Reactions 1 | . 1 . Missiles Intercepted . | . . . Alert | -11 -10 -9 ------- Run | Scr Mat Mat Peak Influence 697 | . 411 697 Initial 124 | . . 124 Average 348 | . 220 464 Maximum Alert Level 2 | . 2 2 Low Security (%) 29 | . 45 15 Level 1 30 | . 44 17 Level 2 39 | . 9 66 Level 3 . | . . . Level 4 . | . . . Level 5 . | . . . High Security . | . . . Max Security . | . . . Squads Dispatched 9 | . 3 6 Investigation . | . . . Extermination . | . . . Reinforcement 7 | . 3 4 Assault 2 | . . 2 Garrison . | . . . Intercept . | . . . Searches Triggered . | . . . Construction Impeded . | . . . Haulers Reinforced . | . . . Active Scanning Responses . | . . . Cargo Convoy Interrupts . | . . . Stealth | -11 -10 -9 --------- Run | Scr Mat Mat Distress Signals 5 | . 1 4 Communications Jammed . | . . . Distress Signals . | . . . Times Spotted 68 | . 20 48 Peak Tracking Total 7 | . 4 7 Tactical Retreats . | . . . Traps | -11 -10 -9 ------- Run | Scr Mat Mat Traps Triggered . | . . . Indirectly . | . . . Trap Hack Attempts . | . . . Triggered . | . . . Disarmed . | . . . Reprogrammed . | . . . Reused . | . . . Traps Extracted . | . . . Installed . | . . . Triggered . | . . . Machines | -11 -10 -9 ---------- Run | Scr Mat Mat Machines Disabled 2 | . 1 1 Max in Single Turn 1 | . 1 1 Machines Sabotaged . | . . . Garrisons Compromised . | . . . Overloaded Fab Kills . | . . . Hacking | -11 -10 -9 --------- Run | Scr Mat Mat Machines Accessed 1 | . 1 . Terminals 1 | . 1 . Fabricators . | . . . Repair Stations . | . . . Recycling Units . | . . . Scanalyzers . | . . . Garrison Access . | . . . Total Hacks 2 | . 2 . Successful 1 | . 1 . Failed 1 | . 1 . Catastrophic . | . . . Database Lockouts . | . . . Manual . | . . . Terminals 2 | . 2 . Fabricators . | . . . Repair Stations . | . . . Recycling Units . | . . . Scanalyzers . | . . . Garrison Access . | . . . Terminal Hacks 1 | . 1 . Prototype ID Bank 1 | . 1 . Fabricator Hacks . | . . . Repair Station Hacks . | . . . Recycling Unit Hacks . | . . . Scanalyzer . | . . . Garrison Access Hacks . | . . . Unauthorized Hacks . | . . . Terminals . | . . . Fabricators . | . . . Repair Stations . | . . . Recycling Units . | . . . Scanalyzers . | . . . Garrison Access . | . . . Data Cores Recovered . | . . . Used . | . . . Hacking Detections . | . . . Full Trace Events . | . . . Feedback Events . | . . . Feedback Blocked . | . . . Robot Schematics Acquired . | . . . Robots Built . | . . . Authchips . | . . . Time . | . . . Total Robot Build Rating . | . . . Part Schematics Acquired . | . . . Parts Built . | . . . Authchips . | . . . Time . | . . . Total Part Build Rating . | . . . Parts Repaired . | . . . Time . | . . . Parts Recycled . | . . . Recycled Matter . | . . . Retrieved Matter . | . . . Retrieved Components . | . . . Parts Scanalyzed . | . . . Part Schematics Acquired . | . . . Parts Damaged . | . . . Bothacking | -11 -10 -9 ------------ Run | Scr Mat Mat Used RIF Installer . | . . . Robots Hacked . | . . . Non-combat . | . . . Combat . | . . . Robot Hacks Applied . | . . . Relay Couplers Released . | . . . Fabnet Peak Effective % . | . . . Robots Rewired . | . . . Allies Hacked . | . . . Hacks Repelled . | . . . Allies | -11 -10 -9 -------- Run | Scr Mat Mat Total Allies . | . . . Largest Group . | . . . Highest-Rated Group . | . . . Highest-Rated Ally . | . . . Total Orders . | . . . Ally Attacks . | . . . Total Damage . | . . . Kills . | . . . Allies Corrupted . | . . . Allies Melted . | . . . Intel | -11 -10 -9 ------- Run | Scr Mat Mat Robot Analysis Total . | . . . Derelict Logs Recovered . | . . . Drone Launches . | . . . Drone Recoveries . | . . . Exploration | -11 -10 -9 ------------- Run | Scr Mat Mat Turns Passed 963 | . 456 507 Spaces Moved 476 | 1 258 217 Core . | . . . Treads . | . . . Legs 476 | 1 258 217 Wheels . | . . . Hover . | . . . Flight . | . . . Fastest Speed 120 | 120 120 120 Average Speed 120 | 120 120 120 Slowest Speed 120 | 120 120 120 Overloaded Moves . | . . . Propulsion Burnouts . | . . . Robots Hopped . | . . . Cave-ins Triggered . | . . . Exploration Rate (%) 26 | 2 47 29 Regions Visited 2 Branch Regions . Pre-discovered Areas . | . . . Known Exits Taken . | . . . Unknown Exits Taken 2 | 1 1 . Scrap Searched . | . . . Spaces Dug . | . . . Terrain Destroyed 83 | . 44 39 Melee . | . . . Projectile 4 | . . 4 AOE 79 | . 44 35 Terrain Rammed . | . . . Walls Destroyed . | . . . Machines Disabled . | . . . Actions | -11 -10 -9 --------- Run | Scr Mat Mat Total 690 | . 337 353 Wait 60 | . 16 44 Move 474 | . 257 217 Hop . | . . . Pick Up 10 | . 7 3 Fast Attach 7 | . 4 3 Attach 3 | . 1 2 Detach . | . . . Swap 15 | . 4 11 Drop 20 | . 9 11 Fire 97 | . 38 59 Melee . | . . . Ram . | . . . Kick 4 | . 1 3 Crush . | . . . Escape Stasis . | . . . Rewire . | . . . Trap . | . . . Miscellaneous . | . . . Route ------- -11/Scrapyard -10/Materials -9/Materials (discovered 1 exit: [*Sto]) History --------- Turn | Location | Event 1 | -11/Scrapyard | Discovered new exit (range 0) 1 | -11/Scrapyard | Entered Materials 313 | -10/Materials | Build established: Mutant 371 | -10/Materials | Discovered new exit (range 18) 457 | -10/Materials | Entered another Materials area 457 | -9/Materials | Evolved 2 slots: Utility x2 582 | -9/Materials | Destroyed 7 combat bots 857 | -9/Materials | First assault squad dispatched 864 | -9/Materials | Discovered new exit (range 12) 902 | -9/Materials | Destroyed 7 combat bots 961 | -9/Materials | Core integrity fell below 50% 964 | -9/Materials | Self-destructed Last Messages --------------- 00924_ U-05 Engineer lays Concrete. 00942_ C-30 ARC bursts open, deploying its payload. 00942_ G-47 Trooper unfolds itself. 00942_ L-31 Rogue unfolds itself. 00942_ G-34 Mercenary unfolds itself. 00942_ L-31 Rogue unfolds itself. 00942_ M-13 Machinist unfolds itself. 00946_ Imp. Light Cannon destroyed. 00949_ L-31 Rogue Imp. Aluminum Leg blasted off. 00949_ L-31 Rogue knocked back. 00949_ Aluminum Leg destroyed. 00951_ Imp. Heat Sink destroyed. 00952_ L-31 Rogue knocked back. 00953_ Critical hit (Burn: +37). 00955_ L-31 Rogue destroyed. 00958_ L-31 Rogue knocked back. 00961_ Imp. Light Cannon destroyed. 00964_ Particle Gun destroyed. 00964_ Aluminum Leg destroyed. 00964_ Lgt. Nuclear Core destroyed. Map ----- +----------------------------------------------------+ | ????????????????????# """ #?# #????????????? | | ????????????????????# == ### ###??????????? | | ????????????????????#####+## %#??????????? | | ????????????????####### *[ % #########??? | | ????????????????+ !%! T | | ????????????????# #########??? | | ????????????????# % ## #??????????? | | ????????????????+ ########??????????? | | ???????????""???####% / ?? ???????????? | | ????????????"??????#* #???? """?????????? | | ????????????"??????# #?????""" ????????? | | ???????????? ??#### #??????"" ????????? | | ????????????#/??# # [= #??????? ?????????? | | ????????????# ??## # != =#?????????????????? | | ?????????#### ### # * ! #??????#??????????? | | ?????????# [ ###### #??????????? | | ?????????# ## #??????????? | | ?????????# *==[ #??????????? | | ?????????+ < % != #??????????? | | ?????????# = =% = #??????????? | | ?????????# % #??????????? | | ?????????# ####### ####### T ????? | | ?????????#########?????# #???????### ???????? | | ???????????????????????# #??????????????????? | | ???????????????????##### ##?????????????????? | | ???????????????????#@l%m% #?????????????????? | | ???????????????????#/g]g[[#?????????????????? | | ???????????????????#//]][[#?????????????????? | | ???????????????????########?????????????????? | | ????????????????????????????????????????????? | | | | | | | | | | | | | | | | | | | | | | | | | | | | | | | | | | | | | | | | | +----------------------------------------------------+ Best States ------------- Heat Dissipation 42 Energy Generation 14 Energy Capacity 250 Matter Stores 300 Matter Capacity 300 Sight Range 18 Terrain Scan Density 85 Evasion (%) 55 Salvage Targeting 1 Item Schematics ----------------- None Robot Schematics ------------------ None Fabricated ------------ Nothing Alien Tech Used ----------------- None Achievements -------------- None Challenges ------------ None Game ------ Seed EnhancedFusionAutocannon Manual? 0 Play Time 00:11:05 Cumulative 47.3 hours Start 2022.03.19 @ 17:53:05 End 2022.03.19 @ 20:42:04 Sessions 3 Manual Loads 0 Difficulty Rogue Special Mode None Game No. 73 Rogue 73 Adventurer 0 Explorer 0 Win Type - Total 0 Types 0/0/0/0/0/0/0/0/0 Lore% 43 Gallery% 46 Achievement% 44 Wizard Run 0 Options --------- ASCII 0 Keyboard 0 Movement Numpad Keybinds 0 Fullscreen 1 Font 18/SmallcapsGlow Map View 76x50 Tactical HUD 1 Map Filters NONE Filters NONE Steam 1 RUN: 8064041d-a847-4944-88b9-efc5f6ae62ac